bitfinex/quotes_ETHUSD_20250114
["timestamp","ask_amount","ask_price","bid_price","bid_amount"]
[1736824867944,0.80749187,3174.9,3174.7,0.21177005]
[1736824871212,0.1620985,3174.9,3174.7,0.24326707]
[1736824872314,0.1620985,3174.9,3174.8,1.10852571]
[1736824872536,0.1620985,3174.9,3174.8,0.92339697]
[1736824873666,0.1620985,3174.9,3174.8,0.94589697]
[1736824873863,0.1620985,3174.9,3174.8,1.00349339]
[1736824874322,0.1620985,3174.9,3174.8,10.52907919]
[1736824874667,0.62257226,3176.2,3175.9,0.015]
[1736824874861,0.62257226,3176.2,3175.9,0.04648121]
[1736824875024,0.62257226,3176.2,3176.0,0.15412865]
[1736824875223,0.8304,3176.7,3176.0,0.15412865]
[1736824875443,3.28902,3177.7,3176.1,0.11155218]
[1736824875657,0.8304,3177.3,3176.3,0.015]
[1736824875829,3.46010826,3177.1,3176.3,0.04647546]
[1736824876035,3.46010826,3177.1,3176.4,0.15410589]
[1736824876231,3.46010826,3177.1,3176.5,0.03147483]
[1736824876728,3.46010826,3177.1,3176.6,0.15409452]
[1736824877030,6.60763826,3177.1,3176.3,0.05756922]
[1736824877856,3.14765,3177.0,3176.3,0.05756922]
[1736824878665,3.46010826,3177.1,3176.4,0.03147923]
[1736824878832,3.46010826,3177.1,3176.3,0.05756922]
[1736824879025,3.46010826,3177.1,3176.5,0.15179499]
[1736824879249,3.46010826,3177.1,3176.4,0.15180068]
[1736824879438,3.46010826,3177.1,3176.3,0.05756922]
[1736824879756,3.14782,3176.8,3176.3,0.05756922]
[1736824879961,3.97804,3177.0,3176.3,0.05756922]
[1736824880127,0.8304,3177.0,3176.3,0.05756922]
[1736824880560,3.14776,3176.9,3176.3,0.05756922]
[1736824880762,0.8304,3177.0,3176.3,0.05756922]
[1736824881066,0.8304,3177.0,3176.4,0.15173133]
[1736824881228,3.46010826,3177.1,3176.4,0.15173133]
[1736824881536,3.46010826,3177.1,3176.5,0.15172564]
[1736824881739,3.46010826,3177.1,3176.3,0.05756922]
[1736824881962,6.60763826,3177.1,3176.3,0.05756922]
[1736824882176,3.46010826,3177.1,3176.4,0.15173133]
[1736824882356,3.46010826,3177.1,3176.4,0.18320798]
[1736824882544,3.46010826,3177.1,3176.5,0.7897]
[1736824882748,3.46010826,3177.1,3176.6,0.15176618]
[1736824885190,2.83987104,3177.1,3176.7,0.03147633]
[1736824885545,2.83987104,3177.1,3176.8,0.15164693]
[1736824885764,2.83987104,3177.1,3176.5,0.7897]
[1736824886093,2.83987104,3177.1,3176.6,0.15165831]
[1736824886774,2.83987104,3177.1,3176.6,0.03147638]
[1736824886947,2.83987104,3177.1,3176.7,0.15159098]
[1736824887349,2.83987104,3177.1,3176.6,0.0225]
[1736824887552,2.83987104,3177.1,3176.8,0.0225]
[1736824887792,2.83987104,3177.1,3176.9,0.94121026]
[1736824887968,2.83987104,3177.1,3177.0,0.0225]
[1736824888295,2.83987104,3177.1,3177.0,0.23156111]
[1736824888513,2.83987104,3177.1,3177.0,1.44428715]
[1736824888800,2.83987104,3177.1,3177.0,4.56043547]
[1736824888996,2.83987104,3177.1,3177.0,1.41281547]
[1736824889143,2.83987104,3177.1,3177.0,0.99276111]
[1736824889595,2.83987104,3177.1,3177.0,10.17946691]
[1736824894316,2.83987104,3177.1,3177.0,10.72946691]
[1736824894734,2.83987104,3177.1,3177.0,10.17946691]
[1736824895227,2.83987104,3177.1,3177.0,7.03184691]
[1736824895443,2.83987104,3177.1,3177.0,10.8826516]
[1736824895888,1.47778259,3177.1,3177.0,11.4326516]
[1736824896093,0.33362169,3177.1,3177.0,15.0379374]
[1736824896401,0.33362169,3177.1,3177.0,11.9988516]
[1736824896599,0.33362169,3177.1,3177.0,11.7488516]
[1736824896825,0.33362169,3177.1,3177.0,46.9988516]
[1736824897120,0.33362169,3177.1,3177.0,46.7488516]
[1736824897352,0.33362169,3177.1,3177.0,46.9988516]
[1736824897525,0.33362169,3177.1,3177.0,46.7488516]
[1736824898027,0.33362169,3177.1,3177.0,46.9988516]
[1736824898223,0.33362169,3177.1,3177.0,46.4326516]
[1736824898422,0.33362169,3177.1,3177.0,11.4326516]
[1736824899324,0.33362169,3177.1,3177.0,11.9326516]
[1736824899917,0.33362169,3177.1,3177.0,11.6826516]
[1736824900123,0.33362169,3177.1,3177.0,11.9326516]
[1736824900320,0.33362169,3177.1,3177.0,10.8826516]
[1736824900897,0.33362169,3177.1,3177.0,11.6826516]
[1736824901638,0.33362169,3177.1,3177.0,10.8826516]
[1736824904238,0.33362169,3177.1,3177.0,12.8826516]
[1736824905035,0.33362169,3177.1,3177.0,10.8826516]
[1736824906520,0.33362169,3177.1,3177.0,11.4326516]
[1736824908037,0.33362169,3177.1,3177.0,11.6826516]
[1736824908235,0.33362169,3177.1,3177.0,11.9988516]
[1736824908449,0.33362169,3177.1,3177.0,11.6826516]
[1736824908651,0.33362169,3177.1,3177.0,46.6826516]
[1736824909416,0.33362169,3177.1,3177.0,45.8826516]
[1736824909841,0.33362169,3177.1,3177.0,47.8826516]
[1736824911533,0.33362169,3177.1,3177.0,48.6826516]
[1736824912456,0.33362169,3177.1,3177.0,48.4326516]
[1736824913035,0.33362169,3177.1,3177.0,11.4326516]
[1736824913557,0.33362169,3177.1,3177.0,46.4326516]
[1736824913756,0.33362169,3177.1,3177.0,10.8826516]
[1736824917935,0.33362169,3177.1,3177.0,11.4326516]
[1736824918341,0.33362169,3177.1,3177.0,12.5635516]
[1736824919980,0.33362169,3177.1,3177.0,47.5635516]
[1736824921685,0.33362169,3177.1,3177.0,12.2473516]
[1736824922089,0.33362169,3177.1,3177.0,11.6973516]
[1736824922596,0.33362169,3177.1,3177.0,7.8970658]
[1736824922748,0.33362169,3177.1,3177.0,1.7344458]
[1736824923382,0.33362169,3177.1,3177.0,1.02376111]
[1736824923559,0.33362169,3177.1,3177.0,0.20906111]
[1736824924168,0.33362169,3177.1,3177.0,0.21656111]
[1736824924580,0.33362169,3177.1,3177.0,0.23156111]
[1736824924943,0.33362169,3177.1,3177.0,0.20906111]
[1736824925350,0.33362169,3177.1,3177.0,0.89871888]
[1736824925549,0.33362169,3177.1,3177.0,0.86724822]
[1736824926080,0.33362169,3177.1,3177.0,0.23156111]
[1736824926497,0.33362169,3177.1,3177.0,0.26303143]
[1736824926998,1.16662169,3177.1,3177.0,0.20906111]
[1736824927387,1.16662169,3177.1,3177.0,0.05755654]
[1736824928912,1.16662169,3177.1,3177.0,0.19710565]
[1736824929079,1.16662169,3177.1,3177.0,0.05755654]
[1736824929281,1.16662169,3177.1,3177.0,0.19710565]
[1736824929475,1.16662169,3177.1,3177.0,0.05755654]
[1736824929675,4.31414169,3177.1,3177.0,0.19710565]
[1736824929964,4.31414169,3177.1,3176.2,0.0075]
[1736824929965,0.833,3177.0,3176.2,0.03147696]
[1736824930165,0.833,3177.0,3176.3,0.06506922]
[1736824930396,0.833,3177.0,3176.5,0.0075]
[1736824930596,0.833,3177.0,3176.7,0.0225]
[1736824930911,0.833,3177.0,3176.8,0.19762684]
[1736824931119,0.833,3177.0,3176.8,0.22910083]
[1736824931357,0.833,3177.0,3176.8,0.19762684]
[1736824932244,0.833,3177.0,3176.8,0.05756016]
[1736824932541,3.98072,3177.0,3176.8,0.05756016]
[1736824932706,3.98072,3177.0,3175.6,6.1880058]
[1736824932707,0.43143417,3176.9,3175.1,0.7994]
[1736824932905,0.43143417,3176.9,3174.9,2.0]
[1736824932906,3.14863,3176.0,3174.9,2.0]
[1736824933154,0.833,3175.9,3175.2,0.13597614]
[1736824933330,3.98171,3175.9,3175.0,0.13598753]
[1736824933539,0.833,3175.8,3175.3,0.13597045]
[1736824933742,0.833,3175.8,3174.8,0.83088772]
[1736824933743,0.833,3175.8,3175.4,0.03148758]
[1736824933917,0.833,3175.8,3175.4,0.13596476]
[1736824934124,0.833,3175.8,3175.2,0.0075]
[1736824934346,0.833,3175.8,3175.5,0.13595906]
[1736824934523,0.833,3175.8,3175.3,0.03148719]
[1736824934730,0.833,3175.8,3175.6,0.13595337]
[1736824935039,0.833,3175.8,3175.7,0.13594768]
[1736824935219,0.833,3175.8,3175.7,0.0075]
[1736824935415,0.833,3175.8,3175.7,0.14344768]
[1736824936012,0.833,3175.8,3175.7,0.13594768]
[1736824936213,0.833,3175.8,3175.0,3.03148639]
[1736824936423,0.833,3175.8,3175.1,1.11198579]
[1736824936743,0.833,3175.8,3175.1,0.18996857]
[1736824937041,0.833,3175.8,3175.1,0.15848184]
[1736824938854,0.833,3175.8,3175.3,0.0225]
[1736824939017,0.833,3175.8,3175.4,0.03148603]
[1736824939218,0.833,3175.8,3175.5,0.13595906]
[1736824939951,0.833,3175.8,3174.9,0.015]
[1736824940122,0.833,3175.8,3175.6,0.13595337]
[1736824940328,0.833,3175.8,3175.2,0.0075]
[1736824940545,0.833,3175.8,3175.4,0.0225]
[1736824940952,0.833,3175.8,3175.5,0.13595906]
[1736824941331,3.98182,3175.8,3175.5,0.13595906]
[1736824941730,3.98182,3175.8,3175.1,0.03148654]
[1736824941925,0.833,3175.8,3175.1,0.03148654]
[1736824942135,0.833,3175.8,3175.2,0.13681101]
[1736824942336,0.833,3175.8,3175.3,0.03148822]
[1736824942950,0.833,3175.8,3175.4,0.13679963]
[1736824943327,0.833,3175.8,3175.1,0.0075]
[1736824943529,0.778,3175.5,3174.5,0.8279]
[1736824943739,3.92732,3175.3,3175.2,0.13681101]
[1736824943932,0.778,3175.0,3174.1,0.8279]
[1736824944126,0.778,3175.0,3174.3,0.0225]
[1736824944329,0.778,3175.0,3174.5,0.0225]
[1736824944660,0.778,3175.0,3174.6,0.16482551]
[1736824945021,3.15986018,3176.3,3174.6,0.16482551]
[1736824945022,3.14912,3175.5,3174.7,0.015]
[1736824945263,0.778,3175.4,3174.9,0.0075]
[1736824945662,0.778,3175.4,3175.0,0.13330844]
[1736824945840,0.778,3175.4,3175.0,0.1647997]
[1736824946034,0.778,3175.4,3175.0,0.13330844]
[1736824946256,0.778,3175.4,3174.9,0.03899128]
[1736824946477,0.778,3175.4,3175.1,0.015]
[1736824947165,0.778,3175.4,3175.2,0.13367258]
[1736824947365,0.778,3175.4,3175.2,0.16516276]
[1736824947567,0.778,3175.4,3175.2,0.03149018]
[1736824947758,0.778,3175.4,3175.1,0.015]
[1736824947953,0.778,3175.4,3175.2,0.13367258]
[1736824948366,0.778,3175.4,3174.7,0.03899134]
[1736824948568,0.778,3175.4,3174.8,0.15616469]
[1736824948971,0.778,3175.4,3175.0,0.0225]
[1736824949163,0.778,3175.4,3175.1,0.13364761]
[1736824949958,3.1494,3175.2,3175.1,0.13364761]
[1736824950156,3.1494,3175.2,3174.1,0.7851]
[1736824950157,3.9776,3175.2,3174.1,0.7851]
[1736824950358,0.8282,3174.8,3174.2,0.37851]
[1736824950661,3.978,3174.8,3174.3,0.0075]
[1736824950875,3.978,3174.8,3174.3,0.015]
[1736824951174,3.978,3174.8,3174.4,0.13364149]
[1736824951368,0.8282,3174.8,3174.4,0.13364149]
[1736824951579,0.8282,3174.8,3174.5,0.03149669]
[1736824951782,0.8282,3174.8,3174.4,0.13364149]
[1736824951972,0.8282,3174.8,3174.5,0.13363579]
[1736824952171,0.8282,3174.8,3174.4,0.0075]
[1736824952547,0.8282,3174.8,3174.5,0.13363579]
[1736824952770,3.14995,3174.7,3174.5,0.13363579]
[1736824952948,3.14995,3174.7,3173.9,0.0225]
[1736824953149,3.14995,3174.7,3174.1,0.0075]
[1736824953350,3.14995,3174.7,3174.2,0.13365288]
[1736824953679,3.15,3174.6,3174.2,0.13365288]
[1736824954813,0.8282,3174.8,3174.2,0.13365288]
[1736824955007,3.14991,3174.7,3173.9,0.03150002]
[1736824955207,3.14991,3174.7,3174.0,0.13471439]
[1736824955412,3.14991,3174.7,3174.1,0.03150003]
[1736824955610,0.8282,3174.8,3174.2,0.134703]
[1736824955796,3.15056,3174.1,3173.2,0.7851]
[1736824955997,0.8282,3173.9,3173.4,0.13474859]
[1736824956211,0.8282,3173.9,3173.5,0.05400536]
[1736824956520,3.15002,3174.6,3173.7,0.0225]
[1736824956735,0.8282,3174.5,3173.9,0.0225]
[1736824957036,0.8282,3174.5,3174.0,0.13489074]
[1736824957608,0.8282,3174.5,3174.0,0.1663915]
[1736824957808,0.8282,3174.5,3174.0,0.13489074]
[1736824958438,0.8282,3174.5,3174.1,0.0315007]
[1736824958640,0.8282,3174.5,3174.2,0.13487935]
[1736824959053,0.8282,3174.5,3173.9,0.05400069]
[1736824959348,0.8282,3174.5,3174.0,0.13489074]
[1736824959519,0.8282,3174.5,3174.1,0.03150071]
[1736824959712,0.8282,3175.0,3174.2,0.0225]
[1736824960042,3.97781,3175.0,3174.3,0.0075]
[1736824960544,3.97781,3175.0,3174.4,0.13494464]
[1736824960755,0.8282,3175.8,3174.7,0.0225]
[1736824961049,0.61655378,3175.7,3174.9,0.8076]
[1736824961340,0.61655378,3175.7,3174.8,0.44098842]
[1736824961341,0.61655378,3175.7,3175.0,0.13481845]
[1736824961549,3.14935,3175.3,3175.0,0.13481845]
[1736824961756,3.14935,3175.3,3175.1,0.2]
[1736824961917,3.9776,3175.2,3175.1,0.33481275]
[1736824962306,3.9776,3175.2,3175.1,0.2]
[1736824967060,4.62221167,3175.2,3175.1,0.2]
[1736824969883,0.8282,3175.0,3173.6,0.7851]
[1736824970178,0.8282,3174.2,3173.7,0.0075]
[1736824970321,0.8282,3174.2,3173.7,0.15294686]
[1736824970525,1.46643812,3174.2,3173.7,0.0225]
[1736824970777,0.8282,3174.2,3173.8,0.13044117]
[1736824971121,0.8282,3174.2,3173.7,0.0225]
[1736824971323,0.6422768,3174.3,3173.9,0.13043547]
[1736824971563,0.6422768,3174.3,3173.8,0.13044117]
[1736824971717,0.6422768,3174.3,3174.0,0.13042977]
[1736824971921,0.6422768,3174.3,3173.9,0.13043547]
[1736824972154,0.6422768,3174.3,3174.1,0.13042407]
[1736824972354,0.6422768,3174.3,3174.0,0.13042977]
[1736824972585,0.6422768,3174.3,3174.2,0.13068678]
[1736824972760,3.1502,3174.4,3174.1,0.13069248]
[1736824973057,3.1502,3174.4,3174.2,0.13068678]
[1736824973220,3.1502,3174.4,3173.7,0.05400282]
[1736824973425,3.1502,3174.4,3173.8,0.13070957]
[1736824974235,3.1502,3174.4,3173.9,0.03150276]
[1736824974440,3.1502,3174.4,3174.0,0.13071351]
[1736824974642,3.1502,3174.4,3173.7,0.37020276]
[1736824974841,3.1502,3174.4,3173.8,0.13072491]
[1736824975360,3.1502,3174.4,3173.9,0.03150278]
[1736824975758,3.1502,3174.4,3174.0,0.13069051]
[1736824976060,1.44872053,3174.5,3174.0,0.13069051]
[1736824976250,0.62052053,3174.5,3174.1,0.03150279]
[1736824976459,0.62052053,3174.5,3174.2,0.13123124]
[1736824976660,0.62052053,3174.5,3173.9,0.0225]
[1736824976853,0.62052053,3174.5,3174.0,0.13124264]
[1736824977054,0.62052053,3174.5,3174.0,0.16274366]
[1736824977476,0.62052053,3174.5,3174.1,0.8076]
[1736824977839,0.62052053,3174.5,3174.2,0.13123124]
[1736824978580,3.14908,3175.6,3174.3,3.09308503]
[1736824978744,0.8119,3175.5,3174.5,0.0075]
[1736824978946,3.1495,3175.2,3174.5,0.0075]
[1736824979146,3.1495,3175.2,3174.6,0.13111642]
[1736824979575,0.6241183,3175.1,3174.6,0.13111642]
[1736824979948,3.9615,3175.0,3174.6,0.13111642]
[1736824980979,0.6241183,3175.1,3174.6,0.13111642]
[1736824981475,3.14962,3175.0,3174.6,0.13111642]
[1736824982562,3.14982,3174.8,3174.6,0.13111642]
[1736824982751,3.1499,3174.7,3174.6,0.13111642]
[1736824982945,3.1499,3174.7,3174.0,0.0225]
[1736824983145,3.1499,3174.7,3174.6,0.13081735]
[1736824983386,3.1499,3174.7,3174.0,0.0225]
[1736824983568,3.1499,3174.7,3174.6,0.13081735]
[1736824983769,3.1499,3174.7,3173.9,0.7698]
[1736824983998,0.8119,3174.6,3174.0,0.03150296]
[1736824984211,0.8119,3174.6,3174.0,0.13085153]
[1736824984368,0.8119,3175.0,3174.2,0.0225]
[1736824984572,0.8119,3175.0,3174.3,0.41387707]
[1736824984769,0.6241183,3175.1,3174.5,0.7698]
[1736824985187,0.6241183,3175.1,3174.6,0.13093237]
[1736824987424,3.1499,3174.7,3174.6,0.13093237]
[1736824987626,3.15001,3174.6,3174.0,0.7698]
[1736824987997,0.8119,3175.0,3174.1,0.16201705]
[1736824988203,3.14985,3174.8,3174.1,0.16201705]
[1736824988524,3.96152,3175.0,3174.2,0.0225]
[1736824988817,3.96152,3175.0,3174.3,0.13050468]
[1736824989037,3.96152,3175.0,3174.3,0.1620025]
[1736824989315,0.6241183,3175.1,3174.4,0.7773]
[1736824989486,0.6241183,3175.1,3174.5,0.42542608]
[1736824989687,0.6241183,3175.1,3174.5,0.55604972]
[1736824990617,3.96129,3175.3,3174.5,0.55604972]
[1736824990836,3.77605865,3175.2,3174.5,0.55604972]
[1736824990979,3.14958,3175.1,3174.5,0.13062364]
[1736824992205,3.14958,3175.1,3174.6,0.03149588]
[1736824992519,0.62664865,3175.2,3174.7,0.13061225]
[1736824993019,3.1491,3175.6,3174.9,0.7698]
[1736824993213,0.8119,3175.9,3174.9,0.7698]
[1736824993214,3.14916,3175.5,3174.9,0.7698]
[1736824993416,3.14916,3175.5,3175.0,0.13043414]
[1736824993580,0.62368264,3175.4,3175.0,0.13043414]
[1736824993776,0.62368264,3175.4,3174.9,0.7698]
[1736824993979,3.1489,3175.8,3175.1,0.13042844]
[1736824994183,0.8119,3175.9,3175.2,0.04649028]
[1736824994382,0.8119,3175.9,3175.3,0.8183]
[1736824994644,0.62467851,3175.9,3175.4,0.015]
[1736824994912,0.7987,3176.2,3175.4,0.17689994]
[1736824995116,3.14851,3176.1,3175.4,0.17689994]
[1736824996101,3.14871,3175.9,3175.4,0.14541136]
[1736824996301,0.759,3176.0,3175.4,0.13041136]
[1736824996501,3.90811,3175.5,3175.4,0.13041136]
[1736824996838,3.90874,3174.9,3174.6,0.8183]
[1736824996983,0.759,3174.9,3174.2,0.7773]
[1736824997183,3.1498,3174.8,3174.7,0.12996826]
[1736824997421,3.1498,3174.8,3174.2,0.7773]
[1736824997848,3.1498,3174.8,3174.3,0.12999104]
[1736824998338,3.1499,3174.7,3174.4,0.12998535]
[1736824998741,3.1499,3174.7,3174.2,0.7773]
[1736824999096,3.1499,3174.7,3174.3,0.12999104]
[1736824999297,1.38954789,3174.9,3174.3,0.03149904]
[1736824999298,3.90873,3174.9,3174.3,0.03149904]
[1736824999623,0.759,3174.9,3174.4,0.12998535]
[1736824999925,0.759,3174.9,3174.2,0.7773]
[1736825000123,0.759,3174.9,3174.5,0.12997965]
[1736825000423,3.15026,3174.4,3173.8,0.7773]
[1736825000611,3.15032,3174.3,3173.8,0.7773]
[1736825000820,3.15032,3174.3,3173.9,0.13001383]
[1736825002325,0.759,3174.9,3173.9,0.13001383]
[1736825002490,3.15043,3174.2,3173.9,0.13001383]
[1736825002693,3.15059,3174.0,3173.9,0.13001383]
[1736825002892,3.15059,3174.0,3173.5,0.7773]
[1736825003195,3.15059,3174.0,3173.6,0.130238]
[1736825003418,3.15089,3173.7,3173.6,0.130238]
[1736825003724,3.15089,3173.7,3173.2,0.7773]
[1736825004130,3.15065,3174.0,3173.2,0.7773]
[1736825004439,3.1511,3173.5,3173.2,0.7773]
[1736825004618,3.1511,3173.5,3172.8,0.7773]
[1736825005131,3.1511,3173.5,3172.9,0.16178942]
[1736825005931,3.1511,3173.5,3172.9,0.1302779]
[1736825006531,3.90976,3173.9,3172.9,0.1302779]
[1736825006695,3.15134,3173.3,3172.9,0.1302779]
[1736825007592,0.64507169,3173.6,3172.9,0.16179156]
[1736825007832,3.15111,3173.5,3172.9,0.16179156]
[1736825008438,3.15111,3173.5,3172.9,0.1302779]
[1736825009311,3.15111,3173.5,3172.9,0.16179156]
[1736825009727,0.64507169,3173.6,3172.9,0.1302779]
[1736825009911,3.15152,3173.1,3172.9,0.1302779]
[1736825010111,3.15152,3173.1,3172.6,0.015]
[1736825010541,3.15152,3173.1,3172.7,0.13176946]
[1736825011234,0.759,3173.3,3172.5,0.7773]
[1736825011439,3.15159,3173.0,3172.6,0.13177516]
[1736825011632,3.15169,3172.9,3172.6,0.13177516]
[1736825011852,3.15139,3173.2,3172.6,0.13177516]
[1736825012032,3.15188,3172.7,3172.6,0.13177516]
[1736825012229,3.1523,3172.3,3171.9,0.8155]
[1736825012643,3.1523,3172.3,3172.0,0.13292187]
[1736825012958,0.7826,3172.8,3172.0,0.13292187]
[1736825013160,3.15209,3172.5,3172.0,0.13292187]
[1736825015454,3.15225,3172.4,3172.0,0.13292187]
[1736825015824,3.15242,3172.2,3172.0,0.13292187]
[1736825016022,3.15242,3172.2,3171.6,0.7882]
[1736825016023,0.315225,3172.4,3171.6,0.7882]
[1736825016349,3.78146557,3172.7,3171.9,0.015]
[1736825016653,0.62952557,3172.7,3171.9,0.015]
[1736825016833,3.15201,3172.6,3172.0,0.13292187]
[1736825017027,3.15201,3172.6,3171.8,0.7882]
[1736825017440,3.15201,3172.6,3171.9,0.13292757]
[1736825017619,3.15211,3172.5,3171.9,0.13292757]
[1736825018226,3.15211,3172.5,3172.0,0.03152184]
[1736825018755,0.62952557,3172.7,3172.1,0.13291616]
[1736825018968,0.62952557,3172.7,3171.8,0.7882]
[1736825018969,3.15219,3172.4,3171.8,0.7882]
[1736825019143,3.15219,3172.4,3172.2,0.13291046]
[1736825019348,3.15219,3172.4,3171.8,0.7882]
[1736825019738,3.15219,3172.4,3171.9,0.13292757]
[1736825020381,3.78147557,3172.7,3172.0,0.03152326]
[1736825020528,0.62952557,3172.7,3172.1,0.8107]
[1736825020732,0.62952557,3172.7,3172.1,0.94361616]
[1736825021938,0.62952557,3172.7,3172.1,0.92111616]
[1736825022436,3.78140557,3172.7,3172.6,0.0504]
[1736825022634,4.15954613,3172.7,3172.6,0.0504]
[1736825023464,3.78140557,3172.7,3172.6,0.0504]
[1736825024840,4.55060557,3172.7,3172.6,0.0504]
[1736825027627,3.15171,3172.9,3172.6,0.0504]
[1736825027827,0.62133064,3172.9,3172.6,0.0504]
[1736825028069,3.15183,3172.8,3172.6,0.0504]
[1736825030974,3.15188,3172.7,3172.6,0.0504]
[1736825031549,3.15179,3172.8,3172.6,0.0504]
[1736825032876,3.15155,3173.1,3172.6,0.0504]
[1736825033070,3.15155,3173.1,3172.6,0.08191592]
[1736825033375,3.15155,3173.1,3172.7,0.13434832]
[1736825034472,6.40065,3174.0,3172.7,0.13434832]
[1736825034473,3.15081,3173.8,3172.8,0.8464]
[1736825034675,3.15079,3173.9,3173.2,0.0225]
[1736825034876,0.63613455,3174.0,3173.3,0.8239]
[1736825035167,0.63613455,3174.0,3173.3,0.95823715]
[1736825035367,3.15078,3173.9,3173.3,0.95823715]
[1736825036373,1.18379146,3173.9,3173.3,0.95823715]
[1736825036570,0.8051,3173.9,3173.3,0.95823715]
[1736825036947,3.15093,3173.7,3173.3,0.95823715]
[1736825038159,3.15101,3173.6,3173.3,0.95823715]
[1736825038371,3.15082,3173.8,3173.3,0.95823715]
[1736825039081,0.63613455,3174.0,3173.3,0.95823715]
[1736825039082,3.78674455,3174.0,3173.3,0.95823715]
[1736825039281,3.78674455,3174.0,3173.4,0.3997323]
[1736825039579,3.78674455,3174.0,3173.5,0.13388812]
[1736825040146,3.78674455,3174.0,3173.3,0.8239]
[1736825040347,3.78674455,3174.0,3173.6,0.13388242]
[1736825040544,0.63613455,3174.0,3173.3,0.8239]
[1736825040748,0.63613455,3174.0,3173.7,0.13387672]
[1736825040981,0.63613455,3174.0,3173.3,0.8239]
[1736825041503,3.15081,3173.8,3173.3,0.8239]
[1736825041659,0.63613455,3174.0,3173.4,0.133771]
[1736825041845,3.78675455,3174.0,3173.4,0.133771]
[1736825042251,3.15071,3173.9,3173.4,0.133771]
[1736825042987,0.63613455,3174.0,3173.4,0.133771]
[1736825043189,3.78676455,3174.0,3173.6,0.776]
[1736825043555,1.01481101,3174.0,3173.7,0.1337539]
[1736825043883,3.15073,3173.9,3173.7,0.1337539]
[1736825044065,3.15073,3173.9,3173.6,0.776]
[1736825044462,3.15079,3173.8,3173.7,0.1337539]
[1736825044668,3.15079,3173.8,3173.3,0.776]
[1736825045168,0.63613455,3174.0,3173.4,0.13274995]
[1736825045352,0.7913,3175.1,3173.6,0.776]
[1736825045558,3.14998,3174.7,3173.9,0.0225]
[1736825045758,0.7913,3175.1,3174.0,0.776]
[1736825045978,3.14985,3174.8,3174.0,0.90878483]
[1736825046488,0.62178815,3174.6,3174.0,0.90878483]
[1736825046881,3.15017,3174.5,3174.0,0.90878483]
[1736825047065,3.15017,3174.5,3174.0,0.13278483]
[1736825047066,3.1504,3174.2,3174.0,0.13278483]
[1736825047266,3.1504,3174.2,3173.8,0.776]
[1736825047588,3.1504,3174.2,3173.9,0.13279053]
[1736825048111,0.7913,3174.4,3173.9,0.13279053]
[1736825048112,3.15034,3174.3,3173.9,0.13279053]
[1736825049582,3.15041,3174.2,3173.9,0.13279053]
[1736825049984,3.15041,3174.2,3173.8,0.776]
[1736825050291,3.15041,3174.2,3173.9,0.13256797]
[1736825050501,3.15041,3174.2,3173.8,0.776]
[1736825050696,3.15063,3174.0,3173.3,0.776]
[1736825050934,3.15082,3173.8,3173.3,0.776]
[1736825052006,3.15073,3173.9,3173.3,0.776]
[1736825052388,0.63149388,3173.7,3173.4,0.12799549]
[1736825054339,3.15109,3173.5,3173.4,0.12799549]
[1736825054637,0.63149388,3173.7,3172.8,0.0075]
[1736825054638,1.40299388,3173.7,3173.1,0.7917]
[1736825054928,3.78242388,3173.7,3173.1,0.7917]
[1736825055144,3.78242388,3173.7,3173.2,0.12822905]
[1736825055311,0.63149388,3173.7,3173.2,0.12822905]
[1736825055494,3.1502,3174.5,3173.6,0.7917]
[1736825055810,3.1505,3174.1,3173.7,0.12823886]
[1736825056636,0.7715,3174.4,3173.7,0.12823886]
[1736825056637,0.61612375,3174.2,3173.7,0.12823886]
[1736825056785,3.15079,3173.8,3173.7,0.12823886]
[1736825057233,0.7715,3174.1,3173.3,0.7917]
[1736825057399,3.15061,3174.0,3173.7,0.12814693]
[1736825057599,3.76653375,3174.2,3173.4,0.8142]
[1736825057786,3.15,3174.6,3173.9,0.7917]
[1736825057983,3.54215,3174.6,3173.9,0.7917]
[1736825058347,0.63298051,3174.4,3174.0,0.12804556]
[1736825058637,0.33996,3175.0,3174.0,0.12804556]
[1736825058837,3.92114,3175.0,3174.1,0.7917]
[1736825059147,0.63102336,3174.7,3174.2,0.12803417]
[1736825060353,3.78093336,3174.7,3174.2,0.12803417]
[1736825061514,0.63102336,3174.7,3174.2,0.12803417]
[1736825061816,3.15022,3174.4,3174.2,0.12803417]
[1736825062016,3.1503,3174.3,3174.2,0.12803417]
[1736825064453,3.46533,3174.3,3174.2,0.12803417]
[1736825064749,3.46533,3174.3,3173.8,0.7917]
[1736825064972,0.7715,3174.4,3173.8,0.7917]
[1736825065252,3.1509,3173.7,3173.5,0.7917]
[1736825065425,3.15102,3173.6,3173.2,0.7917]
[1736825065923,3.15115,3173.5,3173.2,0.7917]
[1736825067355,3.15115,3173.5,3173.3,0.12352287]
[1736825067559,3.15115,3173.5,3173.2,0.7917]
[1736825067856,3.15115,3173.5,3173.4,0.12351717]
[1736825068244,3.15115,3173.5,3173.2,0.7917]
[1736825068547,3.15115,3173.5,3173.3,0.12352287]
[1736825068730,3.15115,3173.5,3173.2,0.7917]
[1736825068915,3.15115,3173.5,3173.3,0.12352287]
[1736825069117,3.7819788,3173.5,3173.2,0.7917]
[1736825069358,3.7819788,3173.5,3173.3,0.12352287]
[1736825069525,3.7819788,3173.5,3173.2,0.7917]
[1736825069715,3.7819788,3173.5,3173.3,0.12352287]
[1736825069913,3.7819788,3173.5,3173.2,0.7917]
[1736825070153,3.7819788,3173.5,3173.3,0.12352287]
[1736825070369,3.7819788,3173.5,3173.2,0.7917]
[1736825070559,3.7819788,3173.5,3173.4,0.12351717]
[1736825070968,3.7819788,3173.5,3173.2,0.7917]
[1736825071346,3.7819788,3173.5,3173.3,0.12352287]
[1736825071543,3.7819788,3173.5,3172.8,0.0225]
[1736825071770,3.7819788,3173.5,3172.9,0.12354568]
[1736825072169,0.8243,3173.4,3172.9,0.12354568]
[1736825072373,3.1515,3173.1,3172.9,0.12354568]
[1736825072548,3.1515,3173.1,3172.7,0.7753]
[1736825072747,3.1515,3173.1,3172.8,0.12015471]
[1736825072957,3.1515,3173.1,3172.7,0.7753]
[1736825073268,3.1515,3173.1,3172.8,0.12015471]
[1736825073660,3.1515,3173.1,3172.7,0.7753]